[Event "Austrian Championship 2022"]
[Site "Vienna"]
[Date "2022.08.18"]
[Round "8.1"]
[White "Diermair, Andreas"]
[Black "Blohberger, Felix"]
[Result "1/2-1/2"]
[ECO "D19"]
[WhiteElo "2452"]
[BlackElo "2492"]
[Annotator "TA"]
[PlyCount "43"]
[EventDate "2022.08.12"]
[EventType "swiss"]
[EventCountry "AUT"]
[SourceTitle "playchess.com"]
[Source "ChessBase"]
[SourceQuality "1"]
[TimeControl "40/5400+30:1800+30"]

{[%evp 30,35,15,0,6,0,0,-20]} 1. d4 {[%emt 0:00:03]} d5 {[%emt 0:00:06]} 2. c4 {[%emt 0:00:09]} c6 {[%emt 0:00:05]} 3. Nc3 {[%emt 0:01:00]} Nf6 {[%emt 0:00:08]} 4. Nf3 {[%emt 0:00:51]} dxc4 {[%emt 0:00:14]} 5. a4 {[%emt 0:01:56]} Bf5 {[%emt 0:00:07]} 6. Nh4 {[%emt 0:00:11]} Bc8 {[%emt 0:00:45]} 7. Nf3 {[%emt 0:01:28]} Bf5 {[%emt 0:00:07]} 8. Nh4 {[%emt 0:00:40]} Bc8 {[%emt 0:03:38]} 9. e3 {[%emt 0:00:56]} Bg4 {[%emt 0:00:22]} 10. Nf3 {[%emt 0:01:09]} e6 {[%emt 0:02:39]} 11. h3 {[%emt 0:00:45]} Bxf3 {[%emt 0:04:43]} 12. Qxf3 {[%emt 0:00:10]} Bb4 {[%emt 0:00:17]} 13. Bxc4 {[%emt 0:01:50]} Qa5 {[%emt 0:03:10]} 14. Bd2 {[%emt 0:01:38]} O-O {[%emt 0:02:21]} 15. O-O {[%emt 0:00:40]} Nbd7 {[%emt 0:00:21]} 16. Rfd1 {[%emt 0:09:18] The position is equal.} Rad8 {[%emt 0:03:20] D19: Slav Defence: 5 a4 Bf5 6 e3: Main line with 9 Qe2.} 17. Bb3 {[%emt 0:03:55]} e5 {[%emt 0:00:47]} 18. Rac1 {[%emt 0:16:03] [#] A rather calm draw.  Weighted Error Value: White=0.00 (flawless) /Black=0.00 (flawless)} {Predecessor:} Rfe8 $146 19. Be1 exd4 20. exd4 Nb6 21. Rd3 Rd7 22. Rcd1 {½-½ (19) Butnorius,A (2402)-Beinoras,M (2254) Siauliai 2007} 1/2-1/2

[Event "Austrian Championship 2022"]
[Site "Vienna"]
[Date "2022.08.18"]
[Round "8.1"]
[White "Ernst, Robert"]
[Black "Sucher, Johannes"]
[Result "0-1"]
[ECO "B01"]
[WhiteElo "2001"]
[BlackElo "2164"]
[Annotator "NA RC"]
[PlyCount "70"]
[EventDate "2022.08.12"]
[EventType "swiss"]
[EventCountry "AUT"]
[SourceTitle "playchess.com"]
[Source "ChessBase"]
[SourceQuality "1"]
[TimeControl "40/5400+30:1800+30"]

1. e4 {[%emt 0:01:06]} d5 {[%emt 0:03:21]} 2. exd5 {[%emt 0:00:37]} Nf6 {[%emt 0:00:13]} 3. d4 {[%emt 0:00:35]} Bg4 {[%emt 0:00:11]} 4. f3 {[%emt 0:01:49]} Bf5 {[%emt 0:00:09]} 5. g4 {[%emt 0:01:10]} Bg6 {[%emt 0:00:07]} 6. c4 {[%emt 0:00:16]} e6 {[%emt 0:00:40]} 7. Nc3 {[%emt 0:01:20]} c5 {[%emt 0:01:14]} 8. g5 {[%emt 0:04:24]} cxd4 {[%emt 0:01:35]} 9. Qxd4 {[%emt 0:00:44]} Nc6 {[%emt 0:01:36]} 10. Qd1 {[%emt 0:03:39]} Nb4 {[%emt 0:00:15]} 11. gxf6 {[%emt 0:02:45]} Nc2+ {[%emt 0:00:24]} 12. Kf2 {[%emt 0:00:09]} Bc5+ {[%emt 0:34:01]} 13. Kg2 {[%emt 0:02:10]} Qxf6 {[%emt 0:02:55]} 14. Nh3 {[%emt 0:28:36]} Bf5 {[%emt 0:12:01]} 15. Ng5 {[%emt 0:06:40]} Nxa1 {[%emt 0:13:29]} 16. Bd3 {[%emt 0:03:51]} h6 {[%emt 0:04:30]} 17. Nce4 {[%emt 0:09:30]} Qg6 {[%emt 0:00:19]} 18. Nxc5 {[%emt 0:01:49]} hxg5 {[%emt 0:00:34]} 19. Bxf5 {[%emt 0:09:22]} Qxf5 {[%emt 0:00:09]} 20. Ne4 {[%emt 0:00:58]} O-O-O {[%emt 0:00:35]} 21. Bxg5 {[%emt 0:01:44]} f6 {[%emt 0:03:29]} 22. Be3 {[%emt 0:00:47]} Qh3+ {[%emt 0:02:29]} 23. Kf2 {[%emt 0:00:09]} Nc2 {[%emt 0:01:30]} 24. Bxa7 {[%emt 0:05:47]} f5 {[%emt 0:00:56]} 25. Ng3 {[%emt 0:05:53]} Qh4 {[%emt 0:01:09]} 26. Qe2 {[%emt 0:03:58]} Nd4 {[%emt 0:04:25]} 27. Qe5 {[%emt 0:03:03]} f4 {[%emt 0:00:08]} 28. Qb8+ {[%emt 0:00:58]} Kd7 {[%emt 0:00:05]} 29. dxe6+ {[%emt 0:00:28]} Ke8 {[%emt 0:00:36]} 30. Qxb7 {[%emt 0:00:22]} Nxe6 {[%emt 0:01:20]} 31. Qb5+ {[%emt 0:00:48]} Rd7 {[%emt 0:01:38]} 32. Qe5 {[%emt 0:00:31]} Rh6 {[%emt 0:01:47]} 33. Qb8+ {[%emt 0:00:30]} Kf7 {[%emt 0:00:10]} 34. Qb5 {[%emt 0:00:27]} Rxa7 {[%emt 0:01:24]} 35. Qf5+ {[%emt 0:00:15]} Rf6 {[%emt 0:00:47]} 0-1

[Event "Austrian Championship 2022"]
[Site "Vienna"]
[Date "2022.08.18"]
[Round "8.2"]
[White "Menezes, Christoph"]
[Black "Leisch, Lukas"]
[Result "1/2-1/2"]
[ECO "D46"]
[WhiteElo "2417"]
[BlackElo "2404"]
[Annotator "TA"]
[PlyCount "154"]
[EventDate "2022.08.12"]
[EventType "swiss"]
[EventCountry "AUT"]
[SourceTitle "playchess.com"]
[Source "ChessBase"]
[SourceQuality "1"]
[TimeControl "40/5400+30:1800+30"]

{[%evp 21,154,20,19,14,17,0,1,0,0,0,0,-2,102,86,278,341,264,211,207,203,214,212,183,203,195,202,428,356,815,809,794,786,764,735,531,456,449,408,389,384,320,199,289,297,287,279,301,281,283,266,348,309,331,336,365,367,405,377,345,0,348,332,405,385,370,270,270,239,260,260,239,193,192,145,242,237,218,190,392,392,384,378,427,420,391,376,402,327,277,254,375,383,791,791,783,783,758,755,674,633,29958,29960,29961,29962,12380,11817,11087,10259,4618,9,10,17,41,0,0,0,0,0,0,0,0,0,0,0,0,0,0,0,0,0,0,0,0,8,8]} 1. d4 {[%emt 0:00:07]} d5 {[%emt 0:00:24]} 2. c4 {[%emt 0:00:23]} c6 {[%emt 0:00:14]} 3. Nf3 {[%emt 0:00:20]} Nf6 {[%emt 0:00:07]} 4. Nc3 {[%emt 0:00:23]} e6 {[%emt 0:00:16]} 5. e3 {[%emt 0:00:29]} Nbd7 {[%emt 0:00:06]} 6. Qc2 {[%emt 0:00:30]} Bd6 {[%emt 0:00:46]} 7. Bd3 {[%emt 0:00:37]} O-O {[%emt 0:00:20]} 8. O-O {[%emt 0:00:14]} dxc4 {[%emt 0:00:07]} 9. Bxc4 {[%emt 0:00:04]} b5 {[%emt 0:00:07]} 10. Be2 {[%emt 0:00:36]} Bb7 {[%emt 0:00:23]} 11. e4 {[%emt 0:00:48] is the new trend.} e5 {[%emt 0:00:26]} 12. dxe5 {[%emt 0:00:41] D46: Semi-Slav: 5 e3 Nbd7 6 Bd3, Black avoids the Meran.} Nxe5 {[%emt 0:00:08]} 13. Nd4 {[%emt 0:00:23]} Neg4 {[%emt 0:24:28]} 14. Nf5 {[%emt 0:03:32]} Bxh2+ {[%emt 0:07:35]} 15. Kh1 {[%emt 0:00:03]} Bb8 {[%emt 0:05:12]} 16. Bg5 $1 {[%emt 0:02:16]} Qc7 {[%emt 0:01:51]} (16... Bc8 $1 $11 {remains equal.}) 17. f4 $16 {[%emt 0:06:31][%mdl 1024] White has strong compensation. Active counter play!} h5 $2 {[%emt 0:06:03]} (17... h6 $16 {was worth a try.} 18. Bxf6 Nxf6) 18. e5 $18 {[%emt 0:06:45]} Nh7 {[%emt 0:05:55] [#]} 19. Bh4 $146 {[%emt 0:18:31][%cal Of5g7]} ({Predecessor:} 19. Bxg4 hxg4 20. Ne4 c5 21. Nf6+ gxf6 22. Bxf6 Nxf6 23. exf6 Qd7 24. Nh6+ Kh8 25. Qxc5 Bxf4 26. Rad1 Bxg2+ 27. Kxg2 Qb7+ 28. Qd5 {½-½ (28) Manish,A (2354)-Shahil,D (2426) Budapest 2021}) 19... Bc8 {[%emt 0:01:09]} 20. Bd3 {[%emt 0:10:59] aiming for Ne7+.} Bxf5 {[%emt 0:06:50]} 21. Bxf5 {[%emt 0:00:05]} g6 {[%emt 0:00:04]} 22. Bxg4 {[%emt 0:08:03]} hxg4 {[%emt 0:00:02]} 23. Ne4 {[%emt 0:00:43] Inhibits g5. Nf6+ is the strong threat.} a6 $2 {[%emt 0:05:49]} (23... Qc8 24. Rac1 a5 25. Qxc6 Qxc6 26. Rxc6 Ra7) 24. Nf6+ {[%emt 0:11:00]} Kg7 $2 {[%emt 0:04:43]} (24... Nxf6 25. Bxf6 Qd7) 25. Nxh7 {[%emt 0:03:11]} Kxh7 {[%emt 0:00:01]} 26. Bf6 {[%emt 0:00:49] White threatens g3 and mate.} Rh8 {[%emt 0:14:05]} 27. g3 {[%emt 0:04:54]} Kg8+ {[%emt 0:00:21]} 28. Bxh8 {[%emt 0:00:08]} Kxh8 {[%emt 0:00:02]} 29. Qh2+ {[%emt 0:03:29]} Kg7 {[%emt 0:00:08]} 30. Qh4 {[%emt 0:02:04]} Ba7 {[%emt 0:01:17] And now ...Rh8 would win.} 31. Qxg4 {[%emt 0:02:44]} Qa5 {[%emt 0:01:27]} (31... Bd4 $142 32. Rad1 c5) 32. Qe2 {[%emt 0:01:40] Threatens to win with f5.} (32. Qh4 $2 Rh8 33. Qxh8+ Kxh8 $19) 32... Bd4 {[%emt 0:05:01]} 33. Rad1 {[%emt 0:02:43]} c5 {[%emt 0:00:21] [#]} 34. b3 $1 {[%emt 0:00:30]} Qb6 {[%emt 0:02:33]} 35. Qe4 {[%emt 0:05:06] Against Qc6} Rh8+ {[%emt 0:00:17]} 36. Kg2 {[%emt 0:00:04]} Qa5 {[%emt 0:00:07]} (36... Qe6 $2 37. Rh1 Rxh1 38. Rxh1) 37. Qe2 {[%emt 0:00:28]} Qb6 {[%emt 0:00:53]} 38. Rh1 {[%emt 0:00:58]} Re8 {[%emt 0:00:28]} 39. Qf3 {[%emt 0:02:41]} Qa5 {[%emt 0:00:36]} 40. Qe2 {[%emt 0:00:55]} (40. Rde1 $18) 40... Qd8 $2 {[%emt 0:01:02][%mdl 8192]} (40... Qb6 $1 $11 41. Qf3 Qa5) 41. Rh3 {[%emt 0:09:28]} f6 {[%emt 0:02:28]} 42. Rdh1 {[%emt 0:06:18]} Qd5+ {[%emt 0:09:19]} 43. Qf3 {[%emt 0:02:01]} Qxf3+ {[%emt 0:00:15]} 44. Kxf3 {[%emt 0:00:03] Black must now prevent Rh7+.} fxe5 {[%emt 0:00:08][%mdl 4096] Endgame KRR-KRB} 45. Rh7+ {[%emt 0:02:17]} Kf6 {[%emt 0:00:09]} 46. Ra7 {[%emt 0:01:06]} exf4 {[%emt 0:07:41]} 47. Kxf4 {[%emt 0:02:55]} (47. Rxa6+ Kf5 48. gxf4 Re3+ 49. Kg2 Re2+ 50. Kf1 Rd2 $14) (47. gxf4 $18 Kf5 48. Rf7+ (48. Rxa6 Re3+ 49. Kg2 Re2+ 50. Kf3 Re3+ 51. Kg2 Re2+ 52. Kh3 Re3+ 53. Kh2 Re2+ 54. Kh3 Re3+ 55. Kh2 Re2+ 56. Kh3 $11) 48... Ke6 49. Rhh7) 47... Re6 {[%emt 0:01:02] [#]} (47... g5+ $16 {is a better defense.} 48. Kg4 Re4+ 49. Kh5 Re3 50. Rxa6+ Ke5) 48. Rhh7 $1 {[%emt 0:00:55][%csl Gh7][%cal Ra7f7]} g5+ {[%emt 0:02:59]} 49. Kg4 {[%emt 0:00:55] Strongly threatening Rh6+.} Kg6 {[%emt 0:00:04] Against Rh6+} (49... Ke5 {keeps fighting.} 50. Rac7 (50. Kxg5 c4 $14) 50... Ke4) 50. Rhe7 {[%emt 0:00:50]} Rc6 {[%emt 0:02:27]} 51. Rac7 {[%emt 0:01:19]} Rd6 {[%emt 0:00:07]} 52. Rcd7 {[%emt 0:00:55]} Rc6 {[%emt 0:00:05]} 53. Re8 {[%emt 0:00:24]} Kf6 {[%emt 0:02:10]} 54. Rd5 {[%emt 0:01:57]} Kf7 {[%emt 0:00:33]} 55. Re1 {[%emt 0:01:23] Hoping for b4.} Bf6 {[%emt 0:04:34]} (55... Bc3 $142 56. Rc1 Bb4) 56. Kf5 {[%emt 0:01:06]} Be7 $2 {[%emt 0:00:02]} (56... Rc7 57. Rd6 Be7 58. Rxa6 c4) 57. Rd7 {[%emt 0:03:39]} Rf6+ {[%emt 0:00:05]} 58. Kg4 {[%emt 0:00:08]} Re6 {[%emt 0:00:07]} 59. Rxe6 {[%emt 0:00:03]} Kxe6 {[%emt 0:00:04] KR-KB} 60. Ra7 {[%emt 0:00:04]} c4 {[%emt 0:00:22]} 61. bxc4 {[%emt 0:00:06]} bxc4 {[%emt 0:00:09]} 62. Rc7 {[%emt 0:00:10]} a5 {[%emt 0:06:27]} 63. Rxc4 {[%emt 0:00:42]} Kd5 {[%emt 0:00:15] Against Re4} 64. Rc7 {[%emt 0:01:10]} Bc5 {[%emt 0:01:46]} 65. Rxc5+ $2 {[%emt 0:03:38]} Kxc5 $11 {[%emt 0:00:09]} 66. Kxg5 $18 {[%emt 0:00:02] White wants to mate with g4. KPP-KP} Kb4 {[%emt 0:00:07]} 67. Kf4 {[%emt 0:00:13] Threatening mate with g4.} Ka3 {[%emt 0:00:07] The position is equal.} 68. g4 {[%emt 0:00:09]} Kxa2 $11 {[%emt 0:00:06] KP-KP} 69. g5 {[%emt 0:00:15]} a4 {[%emt 0:00:07][%cal Ba5a4,Ba4a3,Ba3a2][%mdl 32]} 70. g6 {[%emt 0:00:04]} a3 {[%emt 0:00:03]} 71. g7 {[%emt 0:00:03]} Kb2 {[%emt 0:00:31]} 72. g8=Q {[%emt 0:00:07] Intending Qg7+ and mate.} a2 {[%emt 0:00:03]} 73. Qg7+ {[%emt 0:00:28]} Kb1 {[%emt 0:00:06]} 74. Qg1+ {[%emt 0:00:10]} Kb2 {[%emt 0:00:04]} 75. Qf2+ {[%emt 0:00:02]} Kb1 {[%emt 0:00:06]} 76. Qe1+ {[%emt 0:00:05]} Kb2 {[%emt 0:00:03]} 77. Qd2+ {[%emt 0:03:18]} Kb1 {[%emt 0:00:53] White really could win this.  Weighted Error Value: White=0.21 (precise) /Black=0.65} 1/2-1/2

[Event "Austrian Championship 2022"]
[Site "Vienna"]
[Date "2022.08.18"]
[Round "8.2"]
[White "Jethan, Martin"]
[Black "Geroe, Leonhard"]
[Result "1-0"]
[ECO "D30"]
[WhiteElo "2103"]
[BlackElo "2017"]
[Annotator "NA RC"]
[PlyCount "67"]
[EventDate "2022.08.12"]
[EventType "swiss"]
[EventCountry "AUT"]
[SourceTitle "playchess.com"]
[Source "ChessBase"]
[SourceQuality "1"]
[TimeControl "40/5400+30:1800+30"]

1. d4 {[%emt 0:00:48]} d5 {[%emt 0:00:15]} 2. c4 {[%emt 0:00:06]} c6 {[%emt 0:00:07]} 3. Nf3 {[%emt 0:00:06]} Nf6 {[%emt 0:00:05]} 4. e3 {[%emt 0:00:06]} e6 {[%emt 0:00:47]} 5. Nbd2 {[%emt 0:00:24]} Nbd7 {[%emt 0:00:58]} 6. b3 {[%emt 0:01:15]} Bd6 {[%emt 0:03:42]} 7. Bb2 {[%emt 0:00:08]} O-O {[%emt 0:01:22]} 8. Bd3 {[%emt 0:01:31]} Qe7 {[%emt 0:07:18]} 9. Ne5 {[%emt 0:01:25]} c5 {[%emt 0:17:44]} 10. f4 {[%emt 0:03:56]} b6 {[%emt 0:03:37]} 11. Qf3 {[%emt 0:14:56]} Bb7 {[%emt 0:11:31]} 12. O-O {[%emt 0:09:42]} cxd4 {[%emt 0:03:21]} 13. exd4 {[%emt 0:01:02]} Bb4 {[%emt 0:00:11]} 14. Qe2 {[%emt 0:04:59]} Bxd2 {[%emt 0:03:36]} 15. Qxd2 {[%emt 0:00:07]} Ne4 {[%emt 0:00:37]} 16. Bxe4 {[%emt 0:12:23]} dxe4 {[%emt 0:00:10]} 17. f5 {[%emt 0:01:36]} Nxe5 {[%emt 0:03:57]} 18. dxe5 {[%emt 0:00:03]} exf5 {[%emt 0:00:39]} 19. Rxf5 {[%emt 0:00:58]} Rad8 {[%emt 0:01:34]} 20. Qf4 {[%emt 0:01:07]} Qc5+ {[%emt 0:05:36]} 21. Kh1 {[%emt 0:00:33]} e3 {[%emt 0:01:04]} 22. Rg5 {[%emt 0:04:47]} e2 {[%emt 0:10:23]} 23. Rxg7+ {[%emt 0:02:52]} Kh8 {[%emt 0:08:17]} 24. Rg8+ {[%emt 0:01:48]} Kxg8 {[%emt 0:03:47]} 25. Qg5+ {[%emt 0:00:10]} Kh8 {[%emt 0:00:06]} 26. e6+ {[%emt 0:04:26]} f6 {[%emt 0:04:12]} 27. Bxf6+ {[%emt 0:00:14]} Rxf6 {[%emt 0:00:06]} 28. Qxf6+ {[%emt 0:00:08]} Kg8 {[%emt 0:00:03]} 29. Qxd8+ {[%emt 0:01:22]} Kg7 {[%emt 0:00:09]} 30. Qd7+ {[%emt 0:00:55]} Kh8 {[%emt 0:03:13]} 31. Qe8+ {[%emt 0:03:29]} Kg7 {[%emt 0:00:07]} 32. Qf7+ {[%emt 0:00:03]} Kh6 {[%emt 0:00:46]} 33. Qf4+ {[%emt 0:01:06]} Kh5 {[%emt 0:00:38]} 34. Re1 {[%emt 0:01:12]} 1-0

[Event "Austrian Championship 2022"]
[Site "Vienna"]
[Date "2022.08.18"]
[Round "8.3"]
[White "Horvath, Dominik"]
[Black "Kilgus, Georg"]
[Result "1-0"]
[ECO "D17"]
[WhiteElo "2488"]
[BlackElo "2386"]
[Annotator "TA"]
[PlyCount "65"]
[EventDate "2022.08.12"]
[EventType "swiss"]
[EventCountry "AUT"]
[SourceTitle "playchess.com"]
[Source "ChessBase"]
[SourceQuality "1"]
[TimeControl "40/5400+30:1800+30"]

{[%evp 15,65,13,28,7,18,21,30,17,30,17,33,9,3,-32,10,0,0,0,0,-3,20,21,19,6,30,14,106,83,93,96,96,78,90,78,79,58,83,47,78,37,79,-183,22,23,117,120,127,84,305,309,281,216]} 1. d4 {[%emt 0:01:58]} d5 {[%emt 0:00:03]} 2. c4 {[%emt 0:00:04]} c6 {[%emt 0:00:05]} 3. Nf3 {[%emt 0:00:12]} Nf6 {[%emt 0:00:04]} 4. Nc3 {[%emt 1:30:16]} dxc4 {[%emt 0:00:49]} 5. a4 {[%emt 0:00:00]} Bf5 {[%emt 0:00:13]} 6. Ne5 {[%emt 0:00:00]} Nbd7 {[%emt 0:00:45]} 7. Nxc4 {[%emt 0:00:00]} Nb6 {[%emt 0:00:02]} 8. Ne5 {[%emt 0:00:00]} a5 {[%emt 0:00:11]} 9. h4 {[%emt 0:00:00] D17: Slav Defence: 5 a4 Bf5: Lines with 6 Nh4 and 6 Ne5.} e6 {[%emt 0:00:23]} 10. f3 {[%emt 0:00:00] Threatens to win with g4.} h6 {[%emt 0:00:04]} 11. e4 {[%emt 0:00:00][%cal Be2e4,Be4e5][%mdl 32] White has an edge.} Bh7 {[%emt 0:00:03]} 12. Be3 {[%emt 0:00:00]} Nfd7 {[%emt 0:00:08]} 13. Nd3 {[%emt 0:00:00]} Bd6 {[%emt 0:00:06] [#]} 14. Nf2 $146 {[%emt 0:00:00]} ({Predecessor:} 14. Ne2 O-O 15. Qb3 Kh8 16. Nef4 Nc8 17. Rd1 Qc7 18. Kf2 b6 19. e5 Be7 20. g4 {½-½ (41) Nakamura,H (2763)-Bu,X (2712) Batumi 2018}) 14... f5 {[%emt 0:20:17]} 15. Qb3 {[%emt 0:00:00]} Qe7 {[%emt 0:04:43]} 16. e5 $1 {[%emt 0:00:00]} Bb4 {[%emt 0:00:23]} 17. Nd3 {[%emt 0:00:00]} Nd5 {[%emt 0:10:59]} 18. Bd2 {[%emt 0:00:00]} N7b6 {[%emt 0:00:12]} 19. Kf2 {[%emt 0:00:00]} Nc7 {[%emt 0:08:27]} 20. f4 {[%emt 0:00:00]} O-O-O {[%emt 0:10:22]} (20... O-O $11 {keeps the balance.}) 21. Nxb4 $16 {[%emt 0:00:00]} axb4 {[%emt 0:06:19]} 22. Ne2 {[%emt 0:00:00]} Nbd5 {[%emt 0:00:46][%cal Og7g5]} 23. h5 {[%emt 0:00:00]} g5 {[%emt 0:07:18]} 24. hxg6 $1 {[%emt 0:00:00]} Bxg6 {[%emt 0:00:02]} 25. Rh3 {[%emt 0:00:00]} Kb8 {[%emt 0:01:10]} 26. Qc4 {[%emt 0:00:00]} Na6 {[%emt 0:00:38]} 27. a5 {[%emt 0:00:00]} c5 {[%emt 0:03:45]} 28. Nc1 $2 {[%emt 0:00:00][%mdl 8192] [#]} (28. Kg1 $1 $16 {stays on course.}) 28... cxd4 $2 {[%emt 0:00:44]} ({Black should try} 28... Nxf4 $1 $19 {[%mdl 512]} 29. Bxf4 Rxd4) 29. Nb3 $11 {[%emt 0:00:00]} Rc8 {[%emt 0:02:51]} (29... Be8 $11 {remains equal.}) 30. Qxd4 $16 {[%emt 0:00:00]} Rhd8 {[%emt 0:00:01]} 31. Bxa6 {[%emt 0:00:00]} ({Don't do} 31. Rxh6 Nc3 32. Qe3 (32. Bxc3 bxc3 33. Qe3 Qb4 $17) (32. bxc3 Rxd4 33. cxd4 Be8 $15) 32... Ne4+ 33. Kg1 Rh8 34. Rxh8 (34. Rxg6 $2 Qh4 $19) 34... Rxh8 $14) 31... Nc3 $2 {[%emt 0:00:36]} (31... bxa6 $16 {might work better.} 32. Rxh6 Rg8) 32. Qb6 $18 {[%emt 0:00:00] aiming for Be3.} Ne4+ {[%emt 0:00:55]} 33. Ke1 {[%emt 0:00:00] Weighted Error Value: White=0.27 (precise) /Black=0.41} 1-0

[Event "Austrian Championship 2022"]
[Site "Vienna"]
[Date "2022.08.18"]
[Round "8.3"]
[White "Oberhuber, Alexander"]
[Black "Mayrhuber, Nikola"]
[Result "0-1"]
[ECO "A13"]
[WhiteElo "2062"]
[BlackElo "2141"]
[Annotator "NA RC"]
[PlyCount "55"]
[EventDate "2022.08.12"]
[EventType "swiss"]
[EventCountry "AUT"]
[SourceTitle "playchess.com"]
[Source "ChessBase"]
[SourceQuality "1"]
[TimeControl "40/5400+30:1800+30"]

1. c4 {[%emt 0:00:05]} e6 {[%emt 0:02:22]} 2. g3 {[%emt 0:00:07]} d5 {[%emt 0:00:07]} 3. Bg2 {[%emt 0:00:06]} d4 {[%emt 0:00:32]} 4. e3 {[%emt 0:00:09]} c5 {[%emt 0:00:18]} 5. Nf3 {[%emt 0:00:23]} Nf6 {[%emt 0:00:32]} 6. exd4 {[%emt 0:01:25]} cxd4 {[%emt 0:00:06]} 7. O-O {[%emt 0:00:19]} Nc6 {[%emt 0:00:18]} 8. d3 {[%emt 0:00:17]} Bd6 {[%emt 0:00:40]} 9. Bg5 {[%emt 0:01:47]} h6 {[%emt 0:00:08]} 10. Bxf6 {[%emt 0:00:05]} Qxf6 {[%emt 0:00:05]} 11. a3 {[%emt 0:00:48]} a5 {[%emt 0:00:10]} 12. Nbd2 {[%emt 0:00:17]} Qe7 {[%emt 0:00:21]} 13. Re1 {[%emt 0:06:33]} O-O {[%emt 0:00:29]} 14. Nb3 {[%emt 0:02:27]} Qf6 {[%emt 0:04:54]} 15. c5 {[%emt 0:04:12]} Bc7 {[%emt 0:00:51]} 16. Nfd2 {[%emt 0:07:38]} a4 {[%emt 0:06:37]} 17. Nc1 {[%emt 0:03:03]} e5 {[%emt 0:06:42]} 18. b4 {[%emt 0:01:35]} axb3 {[%emt 0:00:11]} 19. Ncxb3 {[%emt 0:00:26]} Qg6 {[%emt 0:02:49]} 20. Nc4 {[%emt 0:03:32]} Re8 {[%emt 0:08:01]} 21. Qc2 {[%emt 0:05:54]} Bf5 {[%emt 0:03:09]} 22. Be4 {[%emt 0:02:57]} Bxe4 {[%emt 0:02:41]} 23. dxe4 {[%emt 0:06:01]} Ne7 {[%emt 0:10:59]} 24. Rab1 {[%emt 0:02:29]} Nd5 {[%emt 0:04:59]} 25. Na1 {[%emt 0:02:27]} Nc3 {[%emt 0:03:43]} 26. Rxb7 {[%emt 0:00:27]} Qc6 {[%emt 0:00:07]} 27. Rb3 {[%emt 0:00:40]} Qxc5 {[%emt 0:00:48]} 28. Ne3 {[%emt 0:00:21]} 0-1

[Event "Austrian Championship 2022"]
[Site "Vienna"]
[Date "2022.08.18"]
[Round "8.4"]
[White "Stanec, Nikolaus"]
[Black "Steindl, Johannes"]
[Result "1/2-1/2"]
[ECO "E65"]
[WhiteElo "2460"]
[BlackElo "2312"]
[Annotator "TA"]
[PlyCount "67"]
[EventDate "2022.08.12"]
[EventType "swiss"]
[EventCountry "AUT"]
[SourceTitle "playchess.com"]
[Source "ChessBase"]
[SourceQuality "1"]
[TimeControl "40/5400+30:1800+30"]

{[%evp 17,67,24,2,6,33,10,44,47,46,32,39,39,47,37,60,24,33,27,41,28,27,0,5,10,10,10,12,0,10,8,9,1,20,18,8,0,18,18,18,0,22,0,0,-3,-5,-14,0,-9,0,0,0,0]} 1. c4 {[%emt 0:00:03]} Nf6 {[%emt 0:02:55]} 2. Nf3 {[%emt 0:00:13]} g6 {[%emt 0:00:12]} 3. g3 {[%emt 0:00:06]} Bg7 {[%emt 0:00:03]} 4. Bg2 {[%emt 0:00:07]} O-O {[%emt 0:00:05]} 5. Nc3 {[%emt 0:00:06]} c5 {[%emt 0:00:28]} 6. O-O {[%emt 0:00:41]} Nc6 {[%emt 0:00:27]} 7. d4 {[%emt 0:00:13]} d6 {[%emt 0:00:09]} 8. dxc5 {[%emt 0:05:52]} dxc5 {[%emt 0:00:05]} 9. Bf4 {[%emt 1:27:39]} Nh5 $1 {[%emt 0:00:03][%mdl 4] outshines the older 9...Be6.} 10. Bd2 {[%emt 0:00:00] E65: King's Indian: Fianchetto: 6...c5 7 0-0 without d5 by White.} Be6 {[%emt 0:03:12]} 11. Qa4 {[%emt 0:00:00]} Qa5 {[%emt 0:16:16]} 12. Qxa5 {[%emt 0:00:00] White is slightly better.} Nxa5 {[%emt 0:00:05]} 13. b3 {[%emt 0:00:00]} Rad8 {[%emt 0:02:52][%cal Od8d2] [#] aiming for ...Rxd2!} 14. Rac1 {[%emt 0:00:00]} Nc6 {[%emt 0:00:21]} 15. Rfd1 {[%emt 0:00:00] [#]} b6 $146 {[%emt 0:03:12]} ({Predecessor:} 15... h6 16. Ne1 Rc8 17. Nd3 b6 18. Nd5 Rfd8 19. Kf1 Kf8 20. h3 g5 21. h4 gxh4 22. gxh4 {½-½ (64) Gomez Esteban,J (2490)-Herraiz Hidalgo,H (2355) Torrevieja 1997}) 16. Be1 {[%emt 0:00:00]} (16. Ng5 $5 {[%cal Rg5e6]} Bd7 17. Nge4 $14) 16... Bc8 {[%emt 0:03:26]} 17. Nb5 {[%emt 0:00:00]} (17. Ng5 {keeps more tension.} Bb7 18. Nb5 a6 19. Nc3) 17... Nf6 {[%emt 0:03:50]} 18. Kf1 {[%emt 0:00:00]} Nd7 {[%emt 0:07:22]} 19. Bh3 {[%emt 0:00:00]} Ndb8 {[%emt 0:04:39] The position is equal.} 20. Bxc8 {[%emt 0:00:00]} Rxc8 {[%emt 0:00:02]} 21. e3 {[%emt 0:00:00]} Rfd8 {[%emt 0:01:01]} 22. Ke2 {[%emt 0:00:00]} Kf8 {[%emt 0:03:03]} 23. g4 {[%emt 0:00:00]} h6 {[%emt 0:00:50]} 24. h3 {[%emt 0:00:00]} Rd7 {[%emt 0:03:40]} 25. Rxd7 {[%emt 0:00:00]} (25. Nh4 {feels hotter.} Rcd8 26. Rxd7 Rxd7 27. f4) 25... Nxd7 {[%emt 0:00:03]} 26. Nd2 {[%emt 0:00:00]} Nb4 {[%emt 0:05:11]} 27. a3 {[%emt 0:00:00]} Nc6 {[%emt 0:00:05]} 28. f3 {[%emt 0:00:00]} g5 {[%emt 0:05:45]} (28... a6 $5 29. Nc3 f5 $11) 29. Bg3 {[%emt 0:00:00]} Be5 {[%emt 0:05:09]} 30. Ne4 {[%emt 0:00:00]} Bxg3 {[%emt 0:02:31]} 31. Nxg3 {[%emt 0:00:00]} e6 {[%emt 0:00:02]} 32. Ne4 {[%emt 0:00:00][%cal Oh3h4]} Ke7 {[%emt 0:01:02]} 33. h4 {[%emt 0:00:00]} Nf6 {[%emt 0:00:53]} 34. Nxf6 {[%emt 0:01:56] Weighted Error Value: White=0.07 (flawless) /Black=0.08 (flawless)} 1/2-1/2